Workbook

Sheet St. Hail Calculator
B1: Straight Hail Calculator | R1: Hide here and after
O3: =CropYear -> 2023
H4: AFSC Office Information | N4: Crop Year:
H5: Branch Office:
H6: ='Address (data)'!B3 ->  | N6: Date: | O6: 2023-04-17
B7: ='Address (data)'!A6 -> Client Name | H7: =IF('Address (data)'!C3=0,'Address (data)'!D3 & " " & 'Address (data)'!E3,'Address (data)'!C3) ->  | S7: Client Name
B8: ='Address (data)'!A7 -> Client Address | H8: =IF('Address (data)'!C3=0,"",'Address (data)'!D3&" " &'Address (data)'!E3) ->  | S8: Client Address
B9: ='Address (data)'!A8 -> City, AB Postal Code | H9: Phone: | I9: ='Address (data)'!F3 ->  | K9: ='Address (data)'!E3 ->  | S9: City, AB Postal Code
B10: ` | H10: Fax: | I10: ='Address (data)'!G3 ->  | K10: ='Address (data)'!F3 -> 
F13: AFSC ID | H13: Subscription
J14: <hide> | K14: <hide> | U14: Modication History
U15: 2020-03-20 | V15: Martine West | W15: No changes for 2020 other than year | X15: Completed
B16: Land Location | E16: Agricultural Product | F16: Irrigated or Dryland | G16: Acres | H16: Coverage ($Acre) | I16: Deductible Full Coverage, 10% or 25% | J16: hide Max $ Coverage | K16: hide Full Coverage | L16: Actual Coverage | M16: Twp Hail Rate | N16: Crop Rate Factor | O16: Final Hail Rate | P16: Premium
B17: Twp | C17: Rge | D17: Mer | R17: LOOKUP | S17: Deductible | U17: 2020-04-24 | V17: Martine West | W17: Updated Commodities | X17: Completed
J18: =IF(ISNA(VLOOKUP(CONCATENATE(E18,F18),croptype,2,FALSE)),"",VLOOKUP(CONCATENATE(E18,F18),croptype,4,FALSE)) ->  | K18: =IF(ISBLANK(E18),"",G18*H18) ->  | L18: =IF(OR(ISBLANK(F18),ISBLANK(I18),ISBLANK(G18),ISBLANK(J18)),"",IF(H18>J18,"Maximum Dollar Coverage for "&E18&" is $"&J18,IF(I18="Full coverage",G18*H18,G18*H18*(1-I18)))) ->  | M18: =IF(AND(ISBLANK(B18),ISBLANK(C18),ISBLANK(D18)),"",IF(ISNA(VLOOKUP(R18,Hail_Rates,5,FALSE)),"Invalid Location",VLOOKUP(R18,Hail_Rates,5,FALSE))) ->  | N18: =IF(ISBLANK(E18),"",VLOOKUP(E18,Crop,3,FALSE)) ->  | O18: =IF(ISBLANK(E18),"",IF(ISTEXT(L18),0,(IF(S18=1,M18*N18,IF(S18=2,(M18*N18)*deductiblepercentfor10,(M18*N18)*deductiblepercentfor25))))) ->  | P18: =IF(ISTEXT(L18),"",ROUND(K18*O18,2)) ->  | Q18: =IF(P18="","",1) ->  | R18: =(B18*100000)+(C18*100)+D18 -> 0 | S18: =IF(R18=0,0,IF(I18='St. Hail Commodities (data)'!$G$12,1,IF(I18='St. Hail Commodities (data)'!$G$13,2,3))) -> 0 | T18: =CalcDeductible(I18) -> 
K19: =IF(ISBLANK(E19),"",G19*H19) ->  | L19: =IF(OR(ISBLANK(F19),ISBLANK(I19),ISBLANK(G19),ISBLANK(J19)),"",IF(H19>J19,"Maximum Dollar Coverage for "&E19&" is $"&J19,IF(I19="Full coverage",G19*H19,G19*H19*(1-I19)))) ->  | M19: =IF(AND(ISBLANK(B19),ISBLANK(C19),ISBLANK(D19)),"",IF(ISNA(VLOOKUP(R19,Hail_Rates,5,FALSE)),"Invalid Location",VLOOKUP(R19,Hail_Rates,5,FALSE))) ->  | P19: =IF(ISTEXT(L19),"",ROUND(K19*O19,2)) ->  | R19: =(B19*100000)+(C19*100)+D19 -> 0 | S19: =IF(R19=0,0,IF(I19='St. Hail Commodities (data)'!$G$12,1,IF(I19='St. Hail Commodities (data)'!$G$13,2,3))) -> 0 | T19: =CalcDeductible(I19) -> 
Q20: =IF(P20="","",1) ->  | R20: 0 | S20: =IF(R20=0,0,IF(I20='St. Hail Commodities (data)'!$G$12,1,IF(I20='St. Hail Commodities (data)'!$G$13,2,3))) -> 0 | T20: =CalcDeductible(I20) -> 
J21: =IF(ISNA(VLOOKUP(CONCATENATE(E21,F21),croptype,2,FALSE)),"",VLOOKUP(CONCATENATE(E21,F21),croptype,4,FALSE)) ->  | R21: 0 | S21: =IF(R21=0,0,IF(I21='St. Hail Commodities (data)'!$G$12,1,IF(I21='St. Hail Commodities (data)'!$G$13,2,3))) -> 0 | T21: =CalcDeductible(I21) -> 
R22: 0 | S22: =IF(R22=0,0,IF(I22='St. Hail Commodities (data)'!$G$12,1,IF(I22='St. Hail Commodities (data)'!$G$13,2,3))) -> 0 | T22: =CalcDeductible(I22) -> 
R23: 0 | S23: =IF(R23=0,0,IF(I23='St. Hail Commodities (data)'!$G$12,1,IF(I23='St. Hail Commodities (data)'!$G$13,2,3))) -> 0 | T23: =CalcDeductible(I23) -> 
R24: 0 | S24: =IF(R24=0,0,IF(I24='St. Hail Commodities (data)'!$G$12,1,IF(I24='St. Hail Commodities (data)'!$G$13,2,3))) -> 0 | T24: =CalcDeductible(I24) -> 
R25: 0 | S25: =IF(R25=0,0,IF(I25='St. Hail Commodities (data)'!$G$12,1,IF(I25='St. Hail Commodities (data)'!$G$13,2,3))) -> 0 | T25: =CalcDeductible(I25) -> 
R26: 0 | S26: =IF(R26=0,0,IF(I26='St. Hail Commodities (data)'!$G$12,1,IF(I26='St. Hail Commodities (data)'!$G$13,2,3))) -> 0 | T26: =CalcDeductible(I26) -> 
R27: 0 | S27: =IF(R27=0,0,IF(I27='St. Hail Commodities (data)'!$G$12,1,IF(I27='St. Hail Commodities (data)'!$G$13,2,3))) -> 0 | T27: =CalcDeductible(I27) -> 
D28: Subtotal | P28: =SUM(INDIRECT("P18:P"&ROW()-1)) -> 0
D29: On-line Discount (2%) | P29: =ROUND(SUM(P28*0.02)*-1,2) -> 0
D30: Early Payment Discount (2%) | P30: =ROUND(SUM(P28*0.02)*-1,2) -> 0
D31: Total | G31: =SUM(INDIRECT("G16:G"&ROW()-1)) -> 0 | P31: =(SUM(P28:P30)) -> 0
C33: DISCLAIMER
C34: This is an insurance estimate and is not confirmation that you have insurance.
C35: Enhanced estimate options are available using your AFSC Connect online account. Log in to AFSC Connect to quickly populate your land and crop information from previous hail insurance and/or crop insurance. Contact AFSC at 1.877.899.2372 or info@afsc.ca if you have any questions regarding Hail Insurance or AFSC Connect.
B36: Hide here and after

Sheet Address (data) (hidden)
A1: Address Table
A2: Branch Office | B2: Address Line 1 | C2: Address Line 2 | D2: City | E2: Postal Code | F2: Phone | G2: Fax | J2: Modication History
A3: =IF('St. Hail Calculator'!L5="","",VLOOKUP('St. Hail Calculator'!L5,BranchOffices,1,FALSE)) ->  | B3: =IF(A3="","",VLOOKUP('St. Hail Calculator'!L5,BranchOffices,2,FALSE)) ->  | C3: =IF('St. Hail Calculator'!L5="","",VLOOKUP('St. Hail Calculator'!L5,BranchOffices,3,FALSE)) ->  | D3: =IF('St. Hail Calculator'!L5="","",VLOOKUP('St. Hail Calculator'!L5,BranchOffices,4,FALSE)) ->  | E3: =IF('St. Hail Calculator'!L5="","",VLOOKUP('St. Hail Calculator'!L5,BranchOffices,5,FALSE)) ->  | F3: =IF('St. Hail Calculator'!L5="","",VLOOKUP('St. Hail Calculator'!L5,BranchOffices,6,FALSE)) ->  | G3: =IF('St. Hail Calculator'!L5="","",VLOOKUP('St. Hail Calculator'!L5,BranchOffices,7,FALSE)) ->  | J3: 2020-03-20 | K3: Martine West | L3: No changes for 2020 | M3: Completed
J4: 2021-03-18 | K4: Martine West | L4: No changes for 2021 | M4: Completed
A6: Client Name
A7: Client Address
A8: City, AB Postal Code

Sheet St. Hail Commodities (data) (hidden)
A1: Crop | B1: Ag_Input | C1: Rate Factor | E1: Maximum
A2: Alfalfa Seed | B2: =A2&$G$8 -> Alfalfa SeedDry | C2: 1.5 | E2: 325
A3: Barley | B3: BarleyDry | C3: 1 | E3: 325 | M3: Modification History
A4: Borage | B4: BorageDry | C4: 1.5 | E4: 2525 | G4: Buckwheat | I4: not eligible for irrigation coverage | M4: 2020-03-20 | N4: Martine West | O4: No changes for 2020 | P4: Completed
A5: Brome | B5: BromeDry | C5: 1.5 | E5: 325 | G5: CamelinaIrrigated | I5: not eligible for irrigation coverage | M5: 2020-04-23 | N5: Jackie Sanden | O5: Updated for 2020 crops | P5: Completed
A6: Canary Seed | B6: Canary SeedDry | C6: 1 | E6: 325 | M6: 2021-03-18 | N6: M West | O6: Split peas into two commodities | P6: Completed
A7: Canola | B7: CanolaDry | C7: 1.5 | E7: 425 | M7: 2021-03-24 | N7: J Sanden | O7: Update Ag Inputs 2021
A8: Cereal for Silage | B8: Cereal for SilageDry | C8: 1 | E8: 325 | G8: Dry | M8: 2021-04-19 | N8: M West | O8: Updated Ag Inputs 2021 | P8: Completed
A9: Chickpeas | B9: ChickpeasDry | C9: 1.5 | E9: 425 | G9: Irrigated | M9: 2022-03-30 | N9: Jim B. | O9: Updated Ag Inputs 2022 | P9: Completed
A10: Clover | B10: CloverDry | C10: 1.5 | E10: 325 | M10: 2023-02-15 | N10: Jim B. | O10: Updated Ag Inputs 2023 | P10: Completed
A11: Coriander | B11: CorianderDry | C11: 1.5 | E11: 2525
A12: Corn Silage | B12: Corn SilageDry | C12: 0.75 | E12: 325 | F12: 1 | G12: Full Coverage
A13: Corn-Grain, Grazing | B13: Corn-Grain, GrazingDry | C13: 1 | E13: 325 | F13: 2 | G13: 0.1 | H13: 0.75 | I13: As per I2304-0161
A14: Crested Wheat Grass | B14: Crested Wheat GrassDry | C14: 1.5 | E14: 325 | F14: 3 | G14: 0.25 | H14: 0.5 | I14: As per I2304-0161
A15: Dill | B15: DillDry | C15: 1.5 | E15: 2525
A16: Dry Beans | B16: Dry BeansDry | C16: 1.5 | E16: 325
A17: Faba Beans | B17: Faba BeansDry | C17: 1.5 | E17: 325
A18: Fescue, Grass & Legume for Seed | B18: Fescue, Grass & Legume for SeedDry | C18: 1.5 | E18: 325
A19: Field Peas | B19: Field PeasDry | C19: 1.75 | E19: 325
A20: Flax | B20: FlaxDry | C20: 1 | E20: 325
A21: Fresh Vegetables i.e. Sweet Corn - Pumpkin | B21: Fresh Vegetables i.e. Sweet Corn - PumpkinDry | C21: 1.5 | E21: 2525
A22: Garlic | B22: GarlicDry | C22: 1.5 | E22: 2525
A23: Hay | B23: HayDry | C23: 0.75 | E23: 325
A24: Hay Silage | B24: Hay SilageDry | C24: 0.75 | E24: 325
A25: Hemp | B25: HempDry | C25: 1 | E25: 325
A26: Herbs & Spices | B26: Herbs & SpicesDry | C26: 1.5 | E26: 2525
A27: Intercrop - Cereal | B27: Intercrop - CerealDry | C27: 1 | E27: 325
A28: Intercrop - Oilseed | B28: Intercrop - OilseedDry | C28: 1.75 | E28: 325
A29: Intercrop - Pulse | B29: Intercrop - PulseDry | C29: 1.5 | E29: 325
A30: Lentils | B30: LentilsDry | C30: 1.5 | E30: 325
A31: Market Garden | B31: Market GardenDry | C31: 1.5 | E31: 19050
A32: Millet | B32: MilletDry | C32: 1 | E32: 325
A33: Mint | B33: MintDry | C33: 1 | E33: 2525
A34: Mixed Grain | B34: =A34&$G$8 -> Mixed GrainDry | C34: 1 | E34: 325
A35: Mustard | B35: MustardDry | C35: 1.75 | E35: 325
A36: Oats | B36: OatsDry | C36: 1 | E36: 325
A37: Oilseed for Silage | B37: Oilseed for SilageDry | C37: 1.75 | E37: 325
A38: Other Oilseeds | B38: Other OilseedsDry | C38: 1 | E38: 325
A39: Potatoes | B39: PotatoesDry | C39: 1 | E39: 3725
A40: Processing Crops | B40: Processing CropsDry | C40: 2 | E40: 2525
A41: Pulse for Silage | B41: Pulse for SilageDry | C41: 1.5 | E41: 325
A42: Rye | B42: RyeDry | C42: 1 | E42: 325
A43: Safflower | B43: SafflowerDry | C43: 1 | E43: 325
A44: Sorghum Silage | B44: Sorghum SilageDry | C44: 0.75 | E44: 325
A45: Soybeans | B45: SoybeansDry | C45: 1.5 | E45: 325
A46: Spring Spelt | B46: Spring SpeltDry | C46: 1 | E46: 325
A47: Sugar Beets | B47: Sugar BeetsDry | C47: 0.75 | E47: 2525
A48: Sunflower | B48: SunflowerDry | C48: 1 | E48: 325
A49: Triticale | B49: TriticaleDry | C49: 1 | E49: 325
A50: Wheat | B50: WheatDry | C50: 1 | E50: 325
A51: Alfalfa Seed | B51: =A51&$G$9 -> Alfalfa SeedIrrigated | C51: 1.5 | E51: 575
A52: Barley | B52: BarleyIrrigated | C52: 1 | E52: 575
A53: Borage | B53: BorageIrrigated | C53: 1.5 | E53: 2900
A54: Brome | B54: BromeIrrigated | C54: 1.5 | E54: 575
A55: Canary Seed | B55: Canary SeedIrrigated | C55: 1 | E55: 575
A56: Canola | B56: CanolaIrrigated | C56: 1.5 | E56: 575
A57: Cereal for Silage | B57: Cereal for SilageIrrigated | C57: 1 | E57: 575
A58: Chickpeas | B58: ChickpeasIrrigated | C58: 1.5 | E58: 575
A59: Clover | B59: CloverIrrigated | C59: 1.5 | E59: 575
A60: Coriander | B60: CorianderIrrigated | C60: 1.5 | E60: 2900
A61: Corn Silage | B61: Corn SilageIrrigated | C61: 0.75 | E61: 575
A62: Corn-Grain, Grazing | B62: Corn-Grain, GrazingIrrigated | C62: 1 | E62: 575
A63: Crested Wheat Grass | B63: Crested Wheat GrassIrrigated | C63: 1.5 | E63: 575
A64: Dill | B64: DillIrrigated | C64: 1.5 | E64: 2900
A65: Dry Beans | B65: Dry BeansIrrigated | C65: 1.5 | E65: 575
A66: Faba Beans | B66: Faba BeansIrrigated | C66: 1.5 | E66: 575
A67: Fescue, Grass & Legume for Seed | B67: Fescue, Grass & Legume for SeedIrrigated | C67: 1.5 | E67: 575
A68: Field Peas | B68: Field PeasIrrigated | C68: 1.75 | E68: 575
A69: Flax | B69: FlaxIrrigated | C69: 1 | E69: 575
A70: Fresh Vegetables i.e. Sweet Corn - Pumpkin | B70: Fresh Vegetables i.e. Sweet Corn - PumpkinIrrigated | C70: 1.5 | E70: 2900
A71: Garlic | B71: GarlicIrrigated | C71: 1.5 | E71: 2900
A72: Hay | B72: HayIrrigated | C72: 0.75 | E72: 575
A73: Hay Silage | B73: Hay SilageIrrigated | C73: 0.75 | E73: 575
A74: Hemp | B74: HempIrrigated | C74: 1 | E74: 575
A75: Herbs & Spices | B75: Herbs & SpicesIrrigated | C75: 1.5 | E75: 2900
A76: Intercrop - Cereal | B76: Intercrop - CerealIrrigated | C76: 1 | E76: 575
A77: Intercrop - Oilseed | B77: Intercrop - OilseedIrrigated | C77: 1.75 | E77: 575
A78: Intercrop - Pulse | B78: Intercrop - PulseIrrigated | C78: 1.5 | E78: 575
A79: Lentils | B79: LentilsIrrigated | C79: 1.5 | E79: 575
A80: Market Garden | B80: Market GardenIrrigated | C80: 1.5 | E80: 19050
A81: Millet | B81: MilletIrrigated | C81: 1 | E81: 575
A82: Mint | B82: Mint Irrigated | C82: 1 | E82: 2900
A83: Mixed Grain | B83: =A83&$G$9 -> Mixed GrainIrrigated | C83: 1 | E83: 575
A84: Mustard | B84: MustardIrrigated | C84: 1.75 | E84: 575
A85: Oats | B85: OatsIrrigated | C85: 1 | E85: 575
A86: Oilseed for Silage | B86: Oilseed for SilageIrrigated | C86: 1.75 | E86: 575
A87: Other Oilseeds | B87: Other OilseedsIrrigated | C87: 1 | E87: 575
A88: Potatoes | B88: PotatoesIrrigated | C88: 1 | E88: 4150
A89: Processing Crops | B89: Processing CropsIrrigated | C89: 2 | E89: 2900
A90: Pulse for Silage | B90: Pulse for SilageIrrigated | C90: 1.5 | E90: 575
A91: Rye | B91: RyeIrrigated | C91: 1 | E91: 575
A92: Safflower | B92: SafflowerIrrigated | C92: 1 | E92: 575
A93: Sorghum Silage | B93: Sorghum SilageIrrigated | C93: 0.75 | E93: 575
A94: Soybeans | B94: SoybeansIrrigated | C94: 1.5 | E94: 575
A95: Spring Spelt | B95: Spring SpeltIrrigated | C95: 1 | E95: 575
A96: Sugar Beets | B96: Sugar BeetsIrrigated | C96: 0.75 | E96: 2900
A97: Sunflower | B97: SunflowerIrrigated | C97: 1 | E97: 575
A98: Triticale | B98: TriticaleIrrigated | C98: 1 | E98: 575
A99: Wheat | B99: WheatIrrigated | C99: 1 | E99: 575

Sheet Hail rates (data) (hidden)
A1: location | B1: Township | C1: range | D1: meridian | E1: rate | F1: silage
A2: =(B2*100000)+(C2*100)+D2 -> 100104 | B2: 1 | C2: 1 | D2: 4 | E2: 0.06 | F2: =E2*$K$5 -> 0.045 | N2: Modication History
A3: =(B3*100000)+(C3*100)+D3 -> 100105 | B3: 1 | C3: 1 | D3: 5 | E3: 0.06 | F3: 0.045 | N3: 2020-03-20 | O3: Martine West | P3: Retrieved 2020 Hail Rates | Q3: Completed
A4: 100204 | B4: 1 | C4: 2 | D4: 4 | E4: 0.06 | F4: 0.045 | N4: 2021-03-18 | O4: Martine West | P4: Retrieved 2021 Hail Rates | Q4: Completed
A5: 100205 | B5: 1 | C5: 2 | D5: 5 | E5: 0.06 | F5: 0.045 | J5: Silage Rate | K5: 0.75 | N5: 2022-01-24 | O5: Martine West | P5: Retrieved 2022 Hail Rates | Q5: Completed
A6: 100304 | B6: 1 | C6: 3 | D6: 4 | E6: 0.06 | F6: 0.045 | N6: 2023-02-15 | O6: J Baumgartner | P6: Retrieved 2022 Hail Rates | Q6: Completed
A7: 100404 | B7: 1 | C7: 4 | D7: 4 | E7: 0.06 | F7: 0.045
A8: 100504 | B8: 1 | C8: 5 | D8: 4 | E8: 0.06 | F8: 0.045
A9: 100604 | B9: 1 | C9: 6 | D9: 4 | E9: 0.06 | F9: 0.045
A10: 100704 | B10: 1 | C10: 7 | D10: 4 | E10: 0.06 | F10: 0.045
A11: 100804 | B11: 1 | C11: 8 | D11: 4 | E11: 0.07 | F11: 0.0525
A12: 100904 | B12: 1 | C12: 9 | D12: 4 | E12: 0.07 | F12: 0.0525
A13: 101004 | B13: 1 | C13: 10 | D13: 4 | E13: 0.07 | F13: 0.0525 | I13: .
A14: 101104 | B14: 1 | C14: 11 | D14: 4 | E14: 0.06 | F14: 0.045
A15: 101204 | B15: 1 | C15: 12 | D15: 4 | E15: 0.06 | F15: 0.045
A16: 101304 | B16: 1 | C16: 13 | D16: 4 | E16: 0.06 | F16: 0.045
A17: 101404 | B17: 1 | C17: 14 | D17: 4 | E17: 0.05 | F17: 0.0375
A18: 101504 | B18: 1 | C18: 15 | D18: 4 | E18: 0.05 | F18: 0.0375
A19: 101604 | B19: 1 | C19: 16 | D19: 4 | E19: 0.04 | F19: 0.03
A20: 101704 | B20: 1 | C20: 17 | D20: 4 | E20: 0.05 | F20: 0.0375
A21: 101804 | B21: 1 | C21: 18 | D21: 4 | E21: 0.06 | F21: 0.045
A22: 101904 | B22: 1 | C22: 19 | D22: 4 | E22: 0.06 | F22: 0.045
A23: 102004 | B23: 1 | C23: 20 | D23: 4 | E23: 0.07 | F23: 0.0525
A24: 102104 | B24: 1 | C24: 21 | D24: 4 | E24: 0.11 | F24: 0.0825
A25: 102204 | B25: 1 | C25: 22 | D25: 4 | E25: 0.12 | F25: 0.09
A26: 102304 | B26: 1 | C26: 23 | D26: 4 | E26: 0.1 | F26: 0.075
A27: 102404 | B27: 1 | C27: 24 | D27: 4 | E27: 0.08 | F27: 0.06
A28: 102504 | B28: 1 | C28: 25 | D28: 4 | E28: 0.08 | F28: 0.06
A29: 102604 | B29: 1 | C29: 26 | D29: 4 | E29: 0.08 | F29: 0.06
A30: 102704 | B30: 1 | C30: 27 | D30: 4 | E30: 0.07 | F30: 0.0525
A31: 102803 | B31: 1 | C31: 28 | D31: 3 | E31: 0.06 | F31: 0.045
A32: 102804 | B32: 1 | C32: 28 | D32: 4 | E32: 0.07 | F32: 0.0525
A33: 102903 | B33: 1 | C33: 29 | D33: 3 | E33: 0.06 | F33: 0.045
A34: 102904 | B34: 1 | C34: 29 | D34: 4 | E34: 0.06 | F34: 0.045
A35: 103003 | B35: 1 | C35: 30 | D35: 3 | E35: 0.06 | F35: 0.045
A36: 103004 | B36: 1 | C36: 30 | D36: 4 | E36: 0.06 | F36: 0.045
A37: 200104 | B37: 2 | C37: 1 | D37: 4 | E37: 0.06 | F37: 0.045
A38: 200105 | B38: 2 | C38: 1 | D38: 5 | E38: 0.06 | F38: 0.045
A39: 200204 | B39: 2 | C39: 2 | D39: 4 | E39: 0.06 | F39: 0.045
A40: 200205 | B40: 2 | C40: 2 | D40: 5 | E40: 0.06 | F40: 0.045
A41: 200304 | B41: 2 | C41: 3 | D41: 4 | E41: 0.06 | F41: 0.045
A42: 200404 | B42: 2 | C42: 4 | D42: 4 | E42: 0.06 | F42: 0.045
A43: 200504 | B43: 2 | C43: 5 | D43: 4 | E43: 0.06 | F43: 0.045
A44: 200604 | B44: 2 | C44: 6 | D44: 4 | E44: 0.06 | F44: 0.045
A45: 200704 | B45: 2 | C45: 7 | D45: 4 | E45: 0.06 | F45: 0.045
A46: 200804 | B46: 2 | C46: 8 | D46: 4 | E46: 0.07 | F46: 0.0525
A47: 200904 | B47: 2 | C47: 9 | D47: 4 | E47: 0.07 | F47: 0.0525
A48: 201004 | B48: 2 | C48: 10 | D48: 4 | E48: 0.07 | F48: 0.0525
A49: 201104 | B49: 2 | C49: 11 | D49: 4 | E49: 0.07 | F49: 0.0525
A50: 201204 | B50: 2 | C50: 12 | D50: 4 | E50: 0.06 | F50: 0.045
A51: 201304 | B51: 2 | C51: 13 | D51: 4 | E51: 0.06 | F51: 0.045
A52: 201404 | B52: 2 | C52: 14 | D52: 4 | E52: 0.06 | F52: 0.045
A53: 201504 | B53: 2 | C53: 15 | D53: 4 | E53: 0.04 | F53: 0.03
A54: 201604 | B54: 2 | C54: 16 | D54: 4 | E54: 0.04 | F54: 0.03
A55: 201704 | B55: 2 | C55: 17 | D55: 4 | E55: 0.05 | F55: 0.0375
A56: 201804 | B56: 2 | C56: 18 | D56: 4 | E56: 0.06 | F56: 0.045
A57: 201904 | B57: 2 | C57: 19 | D57: 4 | E57: 0.06 | F57: 0.045
A58: 202004 | B58: 2 | C58: 20 | D58: 4 | E58: 0.07 | F58: 0.0525
A59: 202104 | B59: 2 | C59: 21 | D59: 4 | E59: 0.09 | F59: 0.0675
A60: 202204 | B60: 2 | C60: 22 | D60: 4 | E60: 0.09 | F60: 0.0675
A61: 202304 | B61: 2 | C61: 23 | D61: 4 | E61: 0.1 | F61: 0.075
A62: 202404 | B62: 2 | C62: 24 | D62: 4 | E62: 0.09 | F62: 0.0675
A63: 202504 | B63: 2 | C63: 25 | D63: 4 | E63: 0.1 | F63: 0.075
A64: 202604 | B64: 2 | C64: 26 | D64: 4 | E64: 0.08 | F64: 0.06
A65: 202704 | B65: 2 | C65: 27 | D65: 4 | E65: 0.07 | F65: 0.0525
A66: 202803 | B66: 2 | C66: 28 | D66: 3 | E66: 0.06 | F66: =E66*$K$5 -> 0.045
A67: =(B67*100000)+(C67*100)+D67 -> 202804 | B67: 2 | C67: 28 | D67: 4 | E67: 0.06 | F67: 0.045
A68: 202903 | B68: 2 | C68: 29 | D68: 3 | E68: 0.06 | F68: 0.045
A69: 202904 | B69: 2 | C69: 29 | D69: 4 | E69: 0.06 | F69: 0.045
A70: 203003 | B70: 2 | C70: 30 | D70: 3 | E70: 0.06 | F70: 0.045
A71: 203004 | B71: 2 | C71: 30 | D71: 4 | E71: 0.06 | F71: 0.045
A72: 300104 | B72: 3 | C72: 1 | D72: 4 | E72: 0.06 | F72: 0.045
A73: 300105 | B73: 3 | C73: 1 | D73: 5 | E73: 0.07 | F73: 0.0525
A74: 300204 | B74: 3 | C74: 2 | D74: 4 | E74: 0.06 | F74: 0.045
A75: 300205 | B75: 3 | C75: 2 | D75: 5 | E75: 0.07 | F75: 0.0525
A76: 300304 | B76: 3 | C76: 3 | D76: 4 | E76: 0.06 | F76: 0.045
A77: 300305 | B77: 3 | C77: 3 | D77: 5 | E77: 0.07 | F77: 0.0525
A78: 300404 | B78: 3 | C78: 4 | D78: 4 | E78: 0.06 | F78: 0.045
A79: 300405 | B79: 3 | C79: 4 | D79: 5 | E79: 0.07 | F79: 0.0525
A80: 300504 | B80: 3 | C80: 5 | D80: 4 | E80: 0.06 | F80: 0.045
A81: 300604 | B81: 3 | C81: 6 | D81: 4 | E81: 0.06 | F81: 0.045
A82: 300704 | B82: 3 | C82: 7 | D82: 4 | E82: 0.05 | F82: 0.0375
A83: 300804 | B83: 3 | C83: 8 | D83: 4 | E83: 0.06 | F83: 0.045
A84: 300904 | B84: 3 | C84: 9 | D84: 4 | E84: 0.07 | F84: 0.0525
A85: 301004 | B85: 3 | C85: 10 | D85: 4 | E85: 0.07 | F85: 0.0525
A86: 301104 | B86: 3 | C86: 11 | D86: 4 | E86: 0.07 | F86: 0.0525
A87: 301204 | B87: 3 | C87: 12 | D87: 4 | E87: 0.07 | F87: 0.0525
A88: 301304 | B88: 3 | C88: 13 | D88: 4 | E88: 0.07 | F88: 0.0525
A89: 301404 | B89: 3 | C89: 14 | D89: 4 | E89: 0.07 | F89: 0.0525
A90: 301504 | B90: 3 | C90: 15 | D90: 4 | E90: 0.06 | F90: 0.045
A91: 301604 | B91: 3 | C91: 16 | D91: 4 | E91: 0.06 | F91: 0.045
A92: 301704 | B92: 3 | C92: 17 | D92: 4 | E92: 0.06 | F92: 0.045
A93: 301804 | B93: 3 | C93: 18 | D93: 4 | E93: 0.06 | F93: 0.045
A94: 301904 | B94: 3 | C94: 19 | D94: 4 | E94: 0.06 | F94: 0.045
A95: 302004 | B95: 3 | C95: 20 | D95: 4 | E95: 0.06 | F95: 0.045
A96: 302104 | B96: 3 | C96: 21 | D96: 4 | E96: 0.06 | F96: 0.045
A97: 302204 | B97: 3 | C97: 22 | D97: 4 | E97: 0.06 | F97: 0.045
A98: 302304 | B98: 3 | C98: 23 | D98: 4 | E98: 0.07 | F98: 0.0525
A99: 302404 | B99: 3 | C99: 24 | D99: 4 | E99: 0.09 | F99: 0.0675
A100: 302504 | B100: 3 | C100: 25 | D100: 4 | E100: 0.1 | F100: 0.075
A101: 302604 | B101: 3 | C101: 26 | D101: 4 | E101: 0.09 | F101: 0.0675
A102: 302704 | B102: 3 | C102: 27 | D102: 4 | E102: 0.08 | F102: 0.06
A103: 302803 | B103: 3 | C103: 28 | D103: 3 | E103: 0.06 | F103: 0.045
A104: 302804 | B104: 3 | C104: 28 | D104: 4 | E104: 0.06 | F104: 0.045
A105: 302903 | B105: 3 | C105: 29 | D105: 3 | E105: 0.06 | F105: 0.045
A106: 302904 | B106: 3 | C106: 29 | D106: 4 | E106: 0.06 | F106: 0.045
A107: 303003 | B107: 3 | C107: 30 | D107: 3 | E107: 0.06 | F107: 0.045
A108: 303004 | B108: 3 | C108: 30 | D108: 4 | E108: 0.06 | F108: 0.045
A109: 400104 | B109: 4 | C109: 1 | D109: 4 | E109: 0.06 | F109: 0.045
A110: 400105 | B110: 4 | C110: 1 | D110: 5 | E110: 0.07 | F110: 0.0525
A111: 400204 | B111: 4 | C111: 2 | D111: 4 | E111: 0.06 | F111: 0.045
A112: 400205 | B112: 4 | C112: 2 | D112: 5 | E112: 0.07 | F112: 0.0525
A113: 400304 | B113: 4 | C113: 3 | D113: 4 | E113: 0.06 | F113: 0.045
A114: 400305 | B114: 4 | C114: 3 | D114: 5 | E114: 0.07 | F114: 0.0525
A115: 400404 | B115: 4 | C115: 4 | D115: 4 | E115: 0.05 | F115: 0.0375
A116: 400405 | B116: 4 | C116: 4 | D116: 5 | E116: 0.07 | F116: 0.0525
A117: 400504 | B117: 4 | C117: 5 | D117: 4 | E117: 0.05 | F117: 0.0375
A118: 400604 | B118: 4 | C118: 6 | D118: 4 | E118: 0.05 | F118: 0.0375
A119: 400704 | B119: 4 | C119: 7 | D119: 4 | E119: 0.05 | F119: 0.0375
A120: 400804 | B120: 4 | C120: 8 | D120: 4 | E120: 0.06 | F120: 0.045
A121: 400904 | B121: 4 | C121: 9 | D121: 4 | E121: 0.07 | F121: 0.0525
A122: 401004 | B122: 4 | C122: 10 | D122: 4 | E122: 0.07 | F122: 0.0525
A123: 401104 | B123: 4 | C123: 11 | D123: 4 | E123: 0.07 | F123: 0.0525
A124: 401204 | B124: 4 | C124: 12 | D124: 4 | E124: 0.08 | F124: 0.06
A125: 401304 | B125: 4 | C125: 13 | D125: 4 | E125: 0.08 | F125: 0.06
A126: 401404 | B126: 4 | C126: 14 | D126: 4 | E126: 0.07 | F126: 0.0525
A127: 401504 | B127: 4 | C127: 15 | D127: 4 | E127: 0.06 | F127: 0.045
A128: 401604 | B128: 4 | C128: 16 | D128: 4 | E128: 0.07 | F128: 0.0525
A129: 401704 | B129: 4 | C129: 17 | D129: 4 | E129: 0.08 | F129: 0.06
A130: 401804 | B130: 4 | C130: 18 | D130: 4 | E130: 0.07 | F130: =E130*$K$5 -> 0.0525
A131: =(B131*100000)+(C131*100)+D131 -> 401904 | B131: 4 | C131: 19 | D131: 4 | E131: 0.06 | F131: 0.045
A132: 402004 | B132: 4 | C132: 20 | D132: 4 | E132: 0.05 | F132: 0.0375
A133: 402104 | B133: 4 | C133: 21 | D133: 4 | E133: 0.05 | F133: 0.0375
A134: 402204 | B134: 4 | C134: 22 | D134: 4 | E134: 0.05 | F134: 0.0375
A135: 402304 | B135: 4 | C135: 23 | D135: 4 | E135: 0.06 | F135: 0.045
A136: 402404 | B136: 4 | C136: 24 | D136: 4 | E136: 0.07 | F136: 0.0525
A137: 402504 | B137: 4 | C137: 25 | D137: 4 | E137: 0.06 | F137: 0.045
A138: 402604 | B138: 4 | C138: 26 | D138: 4 | E138: 0.07 | F138: 0.0525
A139: 402704 | B139: 4 | C139: 27 | D139: 4 | E139: 0.08 | F139: 0.06
A140: 402803 | B140: 4 | C140: 28 | D140: 3 | E140: 0.06 | F140: 0.045
A141: 402804 | B141: 4 | C141: 28 | D141: 4 | E141: 0.08 | F141: 0.06
A142: 402903 | B142: 4 | C142: 29 | D142: 3 | E142: 0.06 | F142: 0.045
A143: 402904 | B143: 4 | C143: 29 | D143: 4 | E143: 0.07 | F143: 0.0525
A144: 403003 | B144: 4 | C144: 30 | D144: 3 | E144: 0.06 | F144: 0.045
A145: 403004 | B145: 4 | C145: 30 | D145: 4 | E145: 0.07 | F145: 0.0525
A146: 500104 | B146: 5 | C146: 1 | D146: 4 | E146: 0.06 | F146: 0.045
A147: 500105 | B147: 5 | C147: 1 | D147: 5 | E147: 0.07 | F147: 0.0525
A148: 500204 | B148: 5 | C148: 2 | D148: 4 | E148: 0.06 | F148: 0.045
A149: 500205 | B149: 5 | C149: 2 | D149: 5 | E149: 0.07 | F149: 0.0525
A150: 500304 | B150: 5 | C150: 3 | D150: 4 | E150: 0.06 | F150: 0.045
A151: 500305 | B151: 5 | C151: 3 | D151: 5 | E151: 0.06 | F151: 0.045
A152: 500404 | B152: 5 | C152: 4 | D152: 4 | E152: 0.06 | F152: 0.045
A153: 500405 | B153: 5 | C153: 4 | D153: 5 | E153: 0.06 | F153: 0.045
A154: 500504 | B154: 5 | C154: 5 | D154: 4 | E154: 0.05 | F154: 0.0375
A155: 500505 | B155: 5 | C155: 5 | D155: 5 | E155: 0.06 | F155: 0.045
A156: 500604 | B156: 5 | C156: 6 | D156: 4 | E156: 0.04 | F156: 0.03
A157: 500704 | B157: 5 | C157: 7 | D157: 4 | E157: 0.04 | F157: 0.03
A158: 500804 | B158: 5 | C158: 8 | D158: 4 | E158: 0.05 | F158: 0.0375
A159: 500904 | B159: 5 | C159: 9 | D159: 4 | E159: 0.07 | F159: 0.0525
A160: 501004 | B160: 5 | C160: 10 | D160: 4 | E160: 0.06 | F160: 0.045
A161: 501104 | B161: 5 | C161: 11 | D161: 4 | E161: 0.06 | F161: 0.045
A162: 501204 | B162: 5 | C162: 12 | D162: 4 | E162: 0.07 | F162: 0.0525
A163: 501304 | B163: 5 | C163: 13 | D163: 4 | E163: 0.07 | F163: 0.0525
A164: 501404 | B164: 5 | C164: 14 | D164: 4 | E164: 0.05 | F164: 0.0375
A165: 501504 | B165: 5 | C165: 15 | D165: 4 | E165: 0.06 | F165: 0.045
A166: 501604 | B166: 5 | C166: 16 | D166: 4 | E166: 0.05 | F166: 0.0375
A167: 501704 | B167: 5 | C167: 17 | D167: 4 | E167: 0.06 | F167: 0.045
A168: 501804 | B168: 5 | C168: 18 | D168: 4 | E168: 0.06 | F168: 0.045
A169: 501904 | B169: 5 | C169: 19 | D169: 4 | E169: 0.06 | F169: 0.045
A170: 502004 | B170: 5 | C170: 20 | D170: 4 | E170: 0.06 | F170: 0.045
A171: 502104 | B171: 5 | C171: 21 | D171: 4 | E171: 0.05 | F171: 0.0375
A172: 502204 | B172: 5 | C172: 22 | D172: 4 | E172: 0.05 | F172: 0.0375
A173: 502304 | B173: 5 | C173: 23 | D173: 4 | E173: 0.04 | F173: 0.03
A174: 502404 | B174: 5 | C174: 24 | D174: 4 | E174: 0.04 | F174: 0.03
A175: 502504 | B175: 5 | C175: 25 | D175: 4 | E175: 0.05 | F175: 0.0375
A176: 502604 | B176: 5 | C176: 26 | D176: 4 | E176: 0.05 | F176: 0.0375
A177: 502704 | B177: 5 | C177: 27 | D177: 4 | E177: 0.06 | F177: 0.045
A178: 502803 | B178: 5 | C178: 28 | D178: 3 | E178: 0.06 | F178: 0.045
A179: 502804 | B179: 5 | C179: 28 | D179: 4 | E179: 0.06 | F179: 0.045
A180: 502903 | B180: 5 | C180: 29 | D180: 3 | E180: 0.06 | F180: 0.045
A181: 502904 | B181: 5 | C181: 29 | D181: 4 | E181: 0.07 | F181: 0.0525
A182: 503003 | B182: 5 | C182: 30 | D182: 3 | E182: 0.06 | F182: 0.045
A183: 503004 | B183: 5 | C183: 30 | D183: 4 | E183: 0.07 | F183: 0.0525
A184: 600104 | B184: 6 | C184: 1 | D184: 4 | E184: 0.07 | F184: 0.0525
A185: 600105 | B185: 6 | C185: 1 | D185: 5 | E185: 0.08 | F185: 0.06
A186: 600204 | B186: 6 | C186: 2 | D186: 4 | E186: 0.06 | F186: 0.045
A187: 600205 | B187: 6 | C187: 2 | D187: 5 | E187: 0.06 | F187: 0.045
A188: 600304 | B188: 6 | C188: 3 | D188: 4 | E188: 0.06 | F188: 0.045
A189: 600305 | B189: 6 | C189: 3 | D189: 5 | E189: 0.06 | F189: 0.045
A190: 600404 | B190: 6 | C190: 4 | D190: 4 | E190: 0.06 | F190: 0.045
A191: 600405 | B191: 6 | C191: 4 | D191: 5 | E191: 0.06 | F191: 0.045
A192: 600504 | B192: 6 | C192: 5 | D192: 4 | E192: 0.05 | F192: 0.0375
A193: 600505 | B193: 6 | C193: 5 | D193: 5 | E193: 0.06 | F193: 0.045
A194: 600604 | B194: 6 | C194: 6 | D194: 4 | E194: 0.03 | F194: =E194*$K$5 -> 0.0225
A195: =(B195*100000)+(C195*100)+D195 -> 600704 | B195: 6 | C195: 7 | D195: 4 | E195: 0.04 | F195: 0.03
A196: 600804 | B196: 6 | C196: 8 | D196: 4 | E196: 0.04 | F196: 0.03
A197: 600904 | B197: 6 | C197: 9 | D197: 4 | E197: 0.04 | F197: 0.03
A198: 601004 | B198: 6 | C198: 10 | D198: 4 | E198: 0.05 | F198: 0.0375
A199: 601104 | B199: 6 | C199: 11 | D199: 4 | E199: 0.05 | F199: 0.0375
A200: 601204 | B200: 6 | C200: 12 | D200: 4 | E200: 0.06 | F200: 0.045
... 4041 more rows

Sheet Not Eligible (data) (hidden)
A3: Lookup | B3: TWP | C3: Range | D3: Meridian | J3: Modication History
A4: =(B4*10000)+(C4*100)+D4 -> 651406 | B4: 65 | C4: 14 | D4: 6 | E4: only a small part of 14 is eligible | J4: 2020-03-20 | K4: Martine West | L4: No changes for 2020 | M4: Completed
A5: =(B5*10000)+(C5*100)+D5 -> 661406 | B5: 66 | C5: 14 | D5: 6 | E5: only a small part of 14 is eligible | J5: 2021-03-18 | K5: Martine West | L5: No changes for 2021 | M5: Completed
A6: 671406 | B6: 67 | C6: 14 | D6: 6 | E6: only a small part of 14 is eligible | J6: 2021-12-17 | K6: Martine West | L6: No changes for 2022 | M6: Completed
A7: 681406 | B7: 68 | C7: 14 | D7: 6 | E7: only a small part of 14 is eligible
A8: 691506 | B8: 69 | C8: 15 | D8: 6 | E8: 0
A9: 691606 | B9: 69 | C9: 16 | D9: 6 | E9: 0
A10: 701506 | B10: 70 | C10: 15 | D10: 6 | E10: 0
A11: 701606 | B11: 70 | C11: 16 | D11: 6 | E11: 0
A12: 711506 | B12: 71 | C12: 15 | D12: 6 | E12: 0
A13: 711606 | B13: 71 | C13: 16 | D13: 6 | E13: 0
A14: 721506 | B14: 72 | C14: 15 | D14: 6 | E14: 0
A15: 721606 | B15: 72 | C15: 16 | D15: 6 | E15: 0
A16: 731506 | B16: 73 | C16: 15 | D16: 6 | E16: 0
A17: 731606 | B17: 73 | C17: 16 | D17: 6 | E17: 0
A18: 741506 | B18: 74 | C18: 15 | D18: 6 | E18: 0
A19: 741606 | B19: 74 | C19: 16 | D19: 6 | E19: 0
A20: 751406 | B20: 75 | C20: 14 | D20: 6 | E20: 0
A21: 751506 | B21: 75 | C21: 15 | D21: 6 | E21: 0
A22: 751606 | B22: 75 | C22: 16 | D22: 6 | E22: 0
A23: 761406 | B23: 76 | C23: 14 | D23: 6 | E23: 0
A24: 761506 | B24: 76 | C24: 15 | D24: 6 | E24: 0
A25: 761606 | B25: 76 | C25: 16 | D25: 6 | E25: 0
A26: 771406 | B26: 77 | C26: 14 | D26: 6 | E26: 0
A27: 771506 | B27: 77 | C27: 15 | D27: 6 | E27: 0
A28: 771606 | B28: 77 | C28: 16 | D28: 6 | E28: 0
A29: 781406 | B29: 78 | C29: 14 | D29: 6 | E29: 0
A30: 781506 | B30: 78 | C30: 15 | D30: 6 | E30: 0
A31: 781606 | B31: 78 | C31: 16 | D31: 6 | E31: 0
A32: 791406 | B32: 79 | C32: 14 | D32: 6 | E32: 0
A33: 791506 | B33: 79 | C33: 15 | D33: 6 | E33: 0
A34: 791606 | B34: 79 | C34: 16 | D34: 6 | E34: 0
A35: 801406 | B35: 80 | C35: 14 | D35: 6 | E35: 0
A36: 801506 | B36: 80 | C36: 15 | D36: 6 | E36: 0
A37: 801606 | B37: 80 | C37: 16 | D37: 6 | E37: 0
A38: 811406 | B38: 81 | C38: 14 | D38: 6 | E38: 0
A39: 811506 | B39: 81 | C39: 15 | D39: 6 | E39: 0
A40: 811606 | B40: 81 | C40: 16 | D40: 6 | E40: 0
A41: 821406 | B41: 82 | C41: 14 | D41: 6 | E41: 0
A42: 821506 | B42: 82 | C42: 15 | D42: 6 | E42: 0
A43: 821606 | B43: 82 | C43: 16 | D43: 6 | E43: 0
A44: 831406 | B44: 83 | C44: 14 | D44: 6 | E44: 0
A45: 831506 | B45: 83 | C45: 15 | D45: 6 | E45: 0
A46: 831606 | B46: 83 | C46: 16 | D46: 6 | E46: 0
A47: 841406 | B47: 84 | C47: 14 | D47: 6 | E47: 0
A48: 841506 | B48: 84 | C48: 15 | D48: 6 | E48: 0
A49: 841606 | B49: 84 | C49: 16 | D49: 6 | E49: 0
A50: 851406 | B50: 85 | C50: 14 | D50: 6 | E50: 0
A51: 851506 | B51: 85 | C51: 15 | D51: 6 | E51: 0
A52: 851606 | B52: 85 | C52: 16 | D52: 6 | E52: 0
A53: 861406 | B53: 86 | C53: 14 | D53: 6 | E53: 0
A54: 861506 | B54: 86 | C54: 15 | D54: 6 | E54: 0
A55: 861606 | B55: 86 | C55: 16 | D55: 6 | E55: 0

Sheet Twp Rge Mer (data) (hidden)
A1: Twp | B1: Rge | C1: Mer
A2: 1 | B2: 1 | C2: 4 | F2: Modication History
A3: 2 | B3: 2 | C3: 5 | F3: 2020-03-20 | G3: Martine West | H3: No changes for 2020 | I3: Completed
A4: 3 | B4: 3 | C4: 6 | F4: 2021-03-18 | G4: Martine West | H4: No changes for 2021 | I4: Completed
A5: 4 | B5: 4
A6: 5 | B6: 5
A7: 6 | B7: 6
A8: 7 | B8: 7
A9: 8 | B9: 8
A10: 9 | B10: 9
A11: 10 | B11: 10
A12: 11 | B12: 11
A13: 12 | B13: 12
A14: 13 | B14: 13
A15: 14 | B15: 14
A16: 15 | B16: 15
A17: 16 | B17: 16
A18: 17 | B18: 17
A19: 18 | B19: 18
A20: 19 | B20: 19
A21: 20 | B21: 20
A22: 21 | B22: 21
A23: 22 | B23: 22
A24: 23 | B24: 23
A25: 24 | B25: 24
A26: 25 | B26: 25
A27: 26 | B27: 26
A28: 27 | B28: 27
A29: 28 | B29: 28
A30: 29 | B30: 29
A31: 30 | B31: 30
A32: 31
A33: 32
A34: 33
A35: 34
A36: 35
A37: 36
A38: 37
A39: 38
A40: 39
A41: 40
A42: 41
A43: 42
A44: 43
A45: 44
A46: 45
A47: 46
A48: 47
A49: 48
A50: 49
A51: 50
A52: 51
A53: 52
A54: 53
A55: 54
A56: 55
A57: 56
A58: 57
A59: 58
A60: 59
A61: 60
A62: 61
A63: 62
A64: 63
A65: 64
A66: 65
A67: 66
A68: 67
A69: 68
A70: 69
A71: 70
A72: 71
A73: 72
A74: 73
A75: 74
A76: 75
A77: 76
A78: 77
A79: 78
A80: 79
A81: 80
A82: 81
A83: 82
A84: 83
A85: 84
A86: 85
A87: 86
A88: 87
A89: 88
A90: 89
A91: 90
A92: 91
A93: 92
A94: 93
A95: 94
A96: 95
A97: 96
A98: 97
A99: 98
A100: 99
A101: 100
A102: 101
A103: 102
A104: 103
A105: 104
A106: 105
A107: 106
A108: 107
A109: 108
A110: 109
A111: 110

Sheet Offices (data) (hidden)
A1: Branch Offices | B1: AddressLine1 | C1: AddressLine2 | D1: City | E1: PostalCode | F1: Phone | G1: Fax | H1: Office Number | I1: Honey RA | K1: Modication History
A2: Athabasca | B2: Provincial Building | C2: 100 - 4903 50th Street | D2: Athabasca, AB | E2: T9S 1E2 | F2: 780.675.4007 | G2: 780.675.3827 | H2: 444 | I2: 3 | L2: Martine West | M2: Fix Lacombe & LaCrete office numbers | N2: Completed
A3: Barrhead | B3: 4924 50th Avenue | C3: PO Box 4533 | D3: Barrhead, AB | E3: T7N 1A4 | F3: 780.674.8782 | G3: 780.674.8787 | H3: 442 | I3: 3 | K3: 2021-03-18 | L3: Martine West | M3: Updated Offices from ManualCalcCommon | N3: Completed
A4: Brooks | B4: Provincial Building | C4: 220 4th Avenue W | D4: Brooks, AB | E4: T1R 0G1 | F4: 403.362.1262 | G4: 403.362.8078 | H4: 115 | I4: 1 | K4: 2021-12-17 | L4: M West | M4: Updated Spirit River address | N4: Completed
A5: Camrose | B5: 4910 52nd Street | D5: Camrose, AB | E5: T4V 2V4 | F5: 780.679.1739 | G5: 780.679.1758 | H5: 331 | I5: 2 | K5: 2021-12-23 | L5: M West | M5: Updated Lacombe DO address | N5: Completed
A6: Claresholm | B6: Provincial Building | C6: PO Box 1227, 109 46th Avenue W | D6: Claresholm, AB | E6: T0L 0T0 | F6: 403.625.3534 | G6: 403.625.2862 | H6: 114 | I6: 1
A7: Drumheller | B7: 111 Railway Avenue West | C7: PO Box 2319 | D7: Drumheller, AB | E7: T0J 0Y0 | F7: 403.823.3042 | G7: 403.823.5083 | H7: 221 | I7: 2
A8: Fairview | B8: Provincial Building | C8: PO Box 1188, 10209 109th Street | D8: Fairview, AB | E8: T0H 1L0 | F8: 780.835.4975 | G8: 780.835.3994 | H8: 552 | I8: 4
A9: Falher | B9: Municipal District Building | C9: PO Box 658, 701 Main Street | D9: Falher, AB | E9: T0H 1M0 | F9: 780.837.2521 | G9: 780.837.8223 | H9: 557 | I9: 4
A10: Foremost | B10: 218 Main Street | C10: PO Box 37 | D10: Foremost, AB | E10: T0K 0X0 | F10: 403.867.3666 | G10: 403.867.2038 | H10: 120 | I10: 1
A11: Grande Prairie | B11: 102 - 10625 Westside Drive | D11: Grande Prairie, AB | E11: T8V 8E6 | F11: 780.538.5220 | G11: 780.532.2560 | H11: 555 | I11: 4
A12: Grimshaw | B12: 5306 50th Street | C12: PO Box 802 | D12: Grimshaw, AB | E12: T0H 1W0 | F12: 780.332.4494 | G12: 780.332.1044 | H12: 554 | I12: 4
A13: Hanna | B13: Provincial Building | C13: PO Box 339, 401 Centre Street | D13: Hanna, AB | E13: T0J 1P0 | F13: 403.854.5525 | G13: 403.854.2590 | H13: 225 | I13: 2
A14: La Crete | B14: 10105 94th Avenue | C14: PO Box 1420 | D14: La Crete, AB | E14: T0H 2H0 | F14: 780.928.2178 | G14: 780.928.2819 | H14: 562 | I14: 4
A15: Lacombe | B15: 5718 - 56 Avenue | D15: Lacombe, AB | E15: T4L 1B1 | F15: 877.899.2372 | G15: 855.700.2372 | H15: 230 | I15: 2
A16: Lamont | B16: 5014 50th Avenue | C16: PO Box 487 | D16: Lamont, AB | E16: T0B 2R0 | F16: 780.895.2266 | G16: 780.895.7755 | H16: 441 | I16: 3
A17: Leduc | B17: 6547 Sparrow Drive | D17: Leduc, AB | E17: T9E 7C7 | F17: 780.986.4088 | G17: 780.986.1085 | H17: 446 | I17: 3
A18: Lethbridge | B18: County of Lethbridge Building | C18: 200 - 905 4th Avenue S. | D18: Lethbridge, AB | E18: T1J 0P4 | F18: 403.381.5240 | G18: 403.382.4527 | H18: 112 | I18: 1
A19: Medicine Hat | B19: 111 - 7 Strachan Bay SE | D19: Medicine Hat, AB | E19: T1B 4Y2 | F19: 403.488.4509 | G19: 403.488.4516 | H19: 113 | I19: 1
A20: Olds | B20: Provincial Building | C20: 101 - 5030 50th Street | D20: Olds, AB | E20: T4H 1S1 | F20: 403.556.4334 | G20: 403.556.4255 | H20: 227 | I20: 2
A21: Oyen | B21: 201 Main Street | C21: PO Box 426 | D21: Oyen, AB | E21: T0J 2J0 | F21: 403.664.3677 | G21: 403.664.2687 | H21: 232 | I21: 2
A22: Ponoka | B22: Provincial Building | C22: PO Box 4426, 250 - 5110 49th Avenue | D22: Ponoka, AB | E22: T4J 1S1 | F22: 403.783.7071 | G22: 403.783.7925 | H22: 226 | I22: 2
A23: Provost | B23: Provincial Building | C23: PO Box 716, 5419 44th Street | D23: Provost, AB | E23: T0B 3S0 | F23: 780.753.2150 | G23: 780.753.2876 | H23: 336 | I23: 2
A24: Red Deer | B24: 1 - 7710 Gaetz Avenue | D24: Red Deer, AB | E24: T4P 2A5 | F24: 403.340.5379 | G24: 403.340.7999 | H24: 222 | I24: 2
A25: Rocky View County | B25: 2 - 261024 Dwight McLellan Trail | D25: Rocky View County, AB | E25: T4A 0T5 | F25: 403.297.6281 | G25: 403.297.8461 | H25: 235 | I25: 2
A26: Sedgewick | B26: 4701 48th Avenue | C26: PO Box 266 | D26: Sedgewick, AB | E26: T0B 4C0 | F26: 780.384.3880 | G26: 780.384.2156 | H26: 333 | I26: 2
A27: Spirit River | B27: Municipal District of Spirit River | C27: #133, 4202 50th Street | D27: Spirit River, AB | E27: T0H 3G0 | F27: 780.864.3986 | G27: 780.864.2529 | H27: 553 | I27: 4
A28: St. Paul | B28: 4321 50th Ave | D28: St. Paul, AB | E28: T0A 3A3 | F28: 780.645.6453 | G28: 780.645.2848 | H28: 334 | I28: 3
A29: Stettler | B29: 5020 50th Street | C29: PO Box 1807 | D29: Stettler, AB | E29: T0C 2L0 | F29: 403.740.4200 | G29: 403.740.4210 | H29: 224 | I29: 2
A30: Stony Plain | B30: Provincial Building | C30: 4709 44th Avenue | D30: Stony Plain, AB | E30: T7Z 1N4 | F30: 780.963.0600 | G30: 780.963.1251 | H30: 447 | I30: 3
A31: Strathmore | B31: 325 3rd Avenue | D31: Strathmore, AB | E31: T1P 1B4 | F31: 403.934.3616 | G31: 403.934.5018 | H31: 119 | I31: 2
A32: Taber | B32: Provincial Building | C32: PO Box 4, 5011 49th Avenue | D32: Taber, AB | E32: T1G 1V9 | F32: 403.223.7900 | G32: 403.223.7985 | H32: 117 | I32: 1
A33: Thorhild | B33: County Administration Building | C33: PO Box 400, 801 1st Street | D33: Thorhild, AB | E33: T0A 3J0 | F33: 780.398.3933 | G33: 780.398.2087 | H33: 449 | I33: 3
A34: Three Hills | B34: Provincial Building | C34: PO Box 40, 128 3rd Avenue S | D34: Three Hills, AB | E34: T0M 2A0 | F34: 403.443.8515 | G34: 403.443.7519 | H34: 228 | I34: 2
A35: Vegreville | B35: Vinet's Village Mall | C35: PO Box 1440, 138 - 4925 50th Avenue | D35: Vegreville, AB | E35: T9C 1S6 | F35: 780.603.2332 | G35: 780.632.3385 | H35: 335 | I35: 3
A36: Vermilion | B36: 5039 49th Avenue | D36: Vermilion, AB | E36: T9X 1B8 | F36: 780.581.2345 | G36: 780.853.1982 | H36: 332 | I36: 3
A37: Vulcan | B37: 104 Centre Street East | C37: PO Box 847 | D37: Vulcan, AB | E37: T0L 2B0 | F37: 403.485.2766 | G37: 403.485.2947 | H37: 118 | I37: 1
A38: Wainwright | B38: 2710 15th Avenue | D38: Wainwright, AB | E38: T9W 0A4 | F38: 780.842.7547 | G38: 780.842.4948 | H38: 337 | I38: 3
A39: Westlock | B39: 11207 104th Avenue | D39: Westlock, AB | E39: T7P 1B2 | F39: 780.349.4544 | G39: 780.349.5240 | H39: 445 | I39: 2

Sheet Properties (Data) (hidden)
A1: Common Properties | D1: Local Properties
A2: Property | B2: Value | D2: Property | E2: Value
A3: Hail Factor | B3: 0.383 | D3: Datafile | E3: St Hail Calculator
A4: ReplyEmailAddress | B4: Info@afsc.ca | D4: CropYear | E4: 2023
A5: LogoFile | B5: CAP AFSC AB CAN bw.jpg | G5: Current Path | H5: \\hs-teams.afsc.ca@SSL\DavWWWRoot\pnp\pnp\Calculators\
A6: DataFilePath1 | B6: \\hs-teams.afsc.ca@SSL\DavWWWRoot\pnp\pnp\Calculators\
A7: DataFilePath2 | B7: \\homestead.afsc.ca@SSL\DavWWWRoot\wrkres\Documents | D7: WorkBookName | E7: St Hail Calculator | G7: Modication History
A8: CommonDataFile | B8: ManualCalcCommonData | G8: 2020-03-20 | H8: Martine West | I8: Updated year | J8: Completed
A9: ModulePath | B9: \\hs-teams.afsc.ca@SSL\DavWWWRoot\pnp\pnp\Calculators\ | G9: 2020-12-11 | H9: Martine West | I9: Updated year | J9: Completed
A10: ModuleName | B10: CalculatorMacros.code | G10: 2021-03-18 | H10: Martine West | I10: Updated hail and formatted to four decimal places | J10: Completed
G11: 2023-02-15 | H11: J Baumgartner | I11: Updated Hail Factor and crop year | J11: Completed
G12: 2023-04-13 | H12: M West | I12: Fixed as per I2304-0161 | J12: Completed
